[Event "FRA-ch Teams Top 16-B 2022"]
[Site "Chartres"]
[Date "2022.06.10"]
[Round "2.15"]
[White "Tregubov, Pavel V."]
[Black "Marcelin, Cyril"]
[Result "1/2-1/2"]
[ECO "D31"]
[WhiteElo "2541"]
[BlackElo "2440"]
[Annotator "TA"]
[PlyCount "115"]
[EventDate "2022.06.09"]
[EventType "team-tourn"]
[EventCountry "FRA"]
[SourceTitle "playchess.com"]
[Source "ChessBase"]
[SourceQuality "1"]
[TimeControl "40/5400+30:1800+30"]

{[%evp 9,115,24,23,23,37,51,53,20,22,22,18,13,19,12,19,9,23,11,34,18,27,28,19,8,35,33,33,14,50,25,30,20,30,25,36,32,44,31,20,20,20,19,19,13,19,-54,12,18,10,10,10,13,10,10,10,16,8,8,8,8,14,15,16,8,8,8,12,5,5,0,0,0,0,0,0,0,0,0,0,0,0,0,0,0,0,0,0,0,0,0,0,0,0,0,0,0,0,0,0,0,0,0,0,0,0,0,30,28]} 1. d4 {[%emt 0:01:59]} d5 {[%emt 0:01:38]} 2. c4 {[%emt 0:00:08]} e6 {[%emt 0:00:21]} 3. Nc3 {[%emt 0:00:09]} a6 {[%emt 0:00:12]} 4. cxd5 {[%emt 0:00:23]} exd5 {[%emt 0:00:10]} 5. Nf3 {[%emt 0:00:06]} c6 {[%emt 0:00:17]} 6. Bf4 {[%emt 0:03:59] D31: Queen's Gambit Declined: Semi-Slav without ...Nf6 (+ Marshall Gambit and Noteboom) and Exchange Variation lines without ...Nf6.} Bd6 {[%emt 0:00:25]} 7. Bxd6 {[%emt 0:00:20]} Qxd6 {[%emt 0:00:05]} 8. e3 {[%emt 0:01:15] White is slightly better.} Ne7 {[%emt 0:00:56]} 9. Qb3 {[%emt 0:01:15]} O-O {[%emt 0:09:24]} 10. Bd3 {[%emt 0:00:30]} Nd7 {[%emt 0:17:32]} 11. O-O {[%emt 0:01:33]} Nf6 {[%emt 0:01:53] [#]} 12. Na4 $146 {[%emt 0:06:05]} ({Predecessor:} 12. h3 Bf5 13. Bxf5 Nxf5 14. Qc2 g6 15. a3 Qe7 16. Rfe1 Nd6 17. Ne5 {½-½ (17) Medic,M (2207)-Berke,A (2127) Durdevac 2020}) 12... Rb8 {[%emt 0:21:57]} 13. Nc5 {[%emt 0:15:32]} g6 {[%emt 0:05:29]} 14. Rac1 {[%emt 0:05:17]} Bf5 {[%emt 0:01:48]} 15. Ne5 {[%emt 0:01:30]} Bxd3 {[%emt 0:00:45]} 16. Qxd3 {[%emt 0:00:20]} Nc8 {[%emt 0:12:57]} 17. f3 {[%emt 0:14:21]} Nb6 {[%emt 0:02:37]} 18. e4 {[%emt 0:02:49][%cal Be3e4,Be4e5][%mdl 32]} Nfd7 {[%emt 0:07:17]} 19. Nexd7 {[%emt 0:17:26]} Nxd7 {[%emt 0:00:06]} 20. e5 {[%emt 0:00:05]} Nxc5 {[%emt 0:00:43]} 21. Rxc5 {[%emt 0:00:06]} (21. exd6 $2 Nxd3 22. Rc2 Nf4 $19) 21... Qe7 {[%emt 0:01:52]} 22. f4 {[%emt 0:00:11]} f6 {[%emt 0:00:53]} 23. Rc2 {[%emt 0:01:04]} Rbe8 {[%emt 0:01:39]} 24. Re2 {[%emt 0:01:32]} fxe5 {[%emt 0:06:58]} 25. dxe5 {[%emt 0:07:55]} Qc5+ {[%emt 0:00:03]} 26. Re3 {[%emt 0:02:35]} Qb4 {[%emt 0:01:03][%csl LRb2,LRf4]} 27. f5 {[%emt 0:03:39]} (27. a3 $11 Qxb2 28. Rb1) 27... Rxf5 {[%emt 0:00:06]} (27... Qxb2 $15 28. fxg6 (28. e6 gxf5 29. Rb1 Qf6 $17) 28... Rxf1+ 29. Kxf1 Rf8+ 30. Rf3 Rxf3+ 31. Qxf3 Qb1+ 32. Kf2 Qc2+ 33. Ke3 Qxg6) 28. Rxf5 $11 {[%emt 0:00:14]} gxf5 {[%emt 0:00:04]} 29. Qxf5 $15 {[%emt 0:03:20][%mdl 4096] [#] Endgame Threatening mate with Rg3+. KQR-KQR} Rf8 {[%emt 0:00:02]} (29... Qxb2 $2 {gets mated.} 30. Rg3+ Kh8 31. Qf6#) 30. Qg5+ {[%emt 0:00:18]} Kh8 {[%emt 0:00:09]} 31. h3 {[%emt 0:00:34] Rg3 is the strong threat.} Qf4 {[%emt 0:01:01]} 32. Qxf4 {[%emt 0:00:24] Active counter play!} Rxf4 $11 {[%emt 0:00:02] KR-KR} 33. e6 {[%emt 0:00:28] [#] Hoping for e7.} Rf8 {[%emt 0:00:11]} 34. Rb3 {[%emt 0:00:15]} ({Much weaker is} 34. e7 Re8 $15) 34... Re8 {[%emt 0:01:55]} (34... Kg7 {is interesting.} 35. Rxb7+ Kf6 36. e7 Re8) 35. Rxb7 {[%emt 0:00:08]} Rxe6 {[%emt 0:00:02]} 36. Kf2 {[%emt 0:03:18]} c5 {[%emt 0:03:03]} 37. b3 {[%emt 0:01:42]} c4 {[%emt 0:02:10]} 38. bxc4 {[%emt 0:00:19]} dxc4 {[%emt 0:00:03]} 39. Rb2 {[%emt 0:01:43]} Kg7 {[%emt 0:01:10]} 40. Rc2 {[%emt 0:00:36]} Re4 {[%emt 0:00:47]} 41. Kf3 {[%emt 0:32:41]} Rd4 {[%emt 0:01:47]} 42. Rc3 {[%emt 0:00:00]} Kf6 {[%emt 0:08:17]} 43. Ra3 {[%emt 0:00:00]} Ke5 {[%emt 0:10:55]} 44. Ra5+ {[%emt 0:00:00]} Rd5 {[%emt 0:00:06]} 45. Rxd5+ {[%emt 0:00:00]} Kxd5 {[%emt 0:00:05] K3P-K3P} 46. Ke3 {[%emt 0:00:00]} Ke5 {[%emt 0:03:19]} 47. a4 {[%emt 0:00:00]} c3 {[%emt 0:05:41]} 48. Kd3 {[%emt 0:00:00]} Kf4 {[%emt 0:00:24]} 49. Kxc3 {[%emt 0:00:00] K3P-KPP} Kg3 {[%emt 0:00:21]} 50. Kb4 {[%emt 0:00:00]} h5 $1 {[%emt 0:01:00][%cal Bh7h5,Bh5h4,Bh4h3,Bh3h2][%mdl 32]} 51. Ka5 {[%emt 0:00:00]} h4 $1 {[%emt 0:00:14]} (51... Kxg2 52. h4 Kh3 53. Kxa6 Kxh4 54. a5 Kh3 55. Kb6 Kh2 56. a6) 52. Kxa6 {[%emt 0:00:00]} Kxg2 {[%emt 0:00:05]} 53. a5 {[%emt 0:00:00]} Kxh3 {[%emt 0:00:05] KP-KP} 54. Kb5 {[%emt 0:00:00] a6 would kill now.} Kg2 {[%emt 0:00:35]} 55. a6 {[%emt 0:00:00] White wants to mate with a7.} h3 {[%emt 0:00:06]} 56. a7 {[%emt 0:00:00]} h2 {[%emt 0:00:13]} 57. a8=Q+ {[%emt 0:00:00]} Kg1 {[%emt 0:00:09]} 58. Qa7+ {[%emt 0:00:00] Weighted Error Value: White=0.06 (flawless) /Black=0.04 (flawless)} 1/2-1/2

[Event "FRA-ch Teams Top 16-B 2022"]
[Site "Chartres"]
[Date "2022.06.10"]
[Round "2.16"]
[White "Monpeurt, Cyrielle"]
[Black "Afraoui, Anaelle"]
[Result "1/2-1/2"]
[ECO "B56"]
[WhiteElo "2172"]
[BlackElo "2115"]
[Annotator "TA"]
[PlyCount "115"]
[EventDate "2022.06.09"]
[EventType "team-tourn"]
[EventCountry "FRA"]
[SourceTitle "playchess.com"]
[Source "ChessBase"]
[SourceQuality "1"]
[TimeControl "40/5400+30:1800+30"]

{[%evp 23,115,-10,0,-42,0,0,0,0,57,0,0,0,0,-7,0,0,0,-32,-39,-39,0,0,0,0,545,556,608,599,587,582,554,261,252,220,249,248,249,230,222,217,250,175,184,185,163,159,161,157,156,158,214,124,112,59,99,99,99,99,99,99,99,46,46,46,98,36,39,40,40,19,372,379,1204,379,448,434,392,400,366,333,251,258,193,0,0,0,0,0,0,0,0,0,0,0]} 1. e4 {[%emt 0:00:03] Petursson,M} c5 {[%emt 0:01:40]} 2. Nf3 {[%emt 0:00:23]} Nc6 {[%emt 0:00:08]} 3. d4 {[%emt 0:00:10]} cxd4 {[%emt 0:00:09]} 4. Nxd4 {[%emt 0:00:06]} Nf6 {[%emt 0:00:08]} 5. Nc3 {[%emt 0:00:13]} d6 {[%emt 0:00:04]} 6. Be3 {[%emt 0:00:25]} Ng4 {[%emt 0:01:09]} 7. Bb5 {[%emt 0:00:17]} Nxe3 {[%emt 0:02:04]} 8. fxe3 {[%emt 0:00:06]} Bd7 {[%emt 0:01:14]} 9. O-O {[%emt 0:00:12]} e6 {[%emt 0:03:26]} 10. Bxc6 {[%emt 0:00:42]} bxc6 {[%emt 0:06:07]} 11. Qf3 {[%emt 0:00:28]} Qf6 {[%emt 0:01:46]} 12. Qe2 {[%emt 0:01:08]} Qg5 {[%emt 0:03:25]} 13. Rf3 {[%emt 0:00:59] B56: Classical Sicilian: Unusual Lines.} (13. Qf3 $5 {[%cal Rf3f7]} Qg6 14. Nce2 $11) 13... Be7 {[%emt 0:03:25]} 14. Rg3 {[%emt 0:02:11]} Qh6 {[%emt 0:07:40]} 15. Rh3 {[%emt 0:00:19]} Qg6 {[%emt 0:01:09]} ({Black should play} 15... Qg5 $11) 16. Rg3 {[%emt 0:00:25]} (16. Qa6 $1 $14) 16... Qh6 $11 {[%emt 0:00:06]} 17. Qa6 {[%emt 0:00:07]} O-O {[%emt 0:01:54]} 18. Qb7 {[%emt 0:08:45]} Rfd8 {[%emt 0:01:51]} 19. Nxc6 {[%emt 0:03:54]} Bxc6 {[%emt 0:00:56]} 20. Qxc6 {[%emt 0:00:24]} Bf6 {[%emt 0:02:55]} 21. Rf1 {[%emt 0:13:36] [#]} Rac8 $146 {[%emt 0:04:07]} (21... Be5 $5 {[%cal Re5g3]} 22. Rh3 Qg6 $11) ({Predecessor:} 21... Be5 22. Rh3 Qg6 23. Ne2 Rac8 24. Qa4 d5 25. exd5 Rxc2 26. Rf2 Qd3 27. Qxa7 Bf6 28. Ng3 Rxf2 29. Kxf2 Qxd5 {0-1 (65) Hector,J (2540)-Petursson,M (2535) Reykjavik 1995 CBM 047 [Petursson,M]}) 22. Qb7 {[%emt 0:03:10]} Rb8 {[%emt 0:03:28]} 23. Qxa7 {[%emt 0:00:33][%cal Oe4e5] e5! is the strong threat.} Rxb2 $2 {[%emt 0:00:38][%mdl 8192]} (23... Ra8 $11 24. Qc7 Rac8) 24. e5 $1 $18 {[%emt 0:06:36] And now Rxf6 would win.} dxe5 {[%emt 0:05:11]} 25. Ne4 {[%emt 0:01:03]} Kh8 {[%emt 0:00:07]} 26. Qxf7 {[%emt 0:10:27]} Rbb8 {[%emt 0:10:16]} 27. Nxf6 {[%emt 0:10:27]} (27. Rh3 $142 Bh4 28. Nd6 $1 {[%mdl 512]}) 27... Rf8 {[%emt 0:09:53] [#]} 28. Qxe6 {[%emt 0:06:20]} gxf6 {[%emt 0:09:57]} (28... Rxf6 29. Qxe5) 29. Rgf3 {[%emt 0:03:05]} Rbe8 {[%emt 0:03:07]} 30. Qf5 {[%emt 0:02:00]} Ra8 {[%emt 0:01:54]} 31. a4 {[%emt 0:08:55]} Ra6 {[%emt 0:05:10]} 32. Rd1 {[%emt 0:04:13] Threatens to win with Rh3.} Rxa4 {[%emt 0:01:34]} 33. Rh3 {[%emt 0:05:51]} Rh4 {[%emt 0:04:21] [#]} 34. Rxh4 {[%emt 0:01:10]} Qxh4 {[%emt 0:00:04][%mdl 4096] Endgame KQR-KQR} 35. h3 {[%emt 0:01:02]} Qg3 {[%emt 0:02:06]} 36. e4 {[%emt 0:01:13]} Rf7 {[%emt 0:02:20]} (36... Qe3+ $16 37. Kh2 Qg5) 37. Rd8+ {[%emt 0:02:48]} (37. c4 $18) 37... Kg7 $16 {[%emt 0:00:20]} 38. Rd7 {[%emt 0:00:48]} (38. Rd3 $16 Qg6 39. Qe6) 38... Qe3+ {[%emt 0:01:24]} 39. Kh2 {[%emt 0:00:12] White is more active.} Rxd7 {[%emt 0:00:14]} 40. Qxd7+ {[%emt 0:00:07] KQ-KQ} Kh6 {[%emt 0:00:58]} 41. Qf5 {[%emt 0:31:50]} Kg7 {[%emt 0:02:43]} 42. Qf3 {[%emt 0:00:00]} (42. h4 $16) 42... Qc1 $14 {[%emt 0:01:46]} 43. Qd3 {[%emt 0:00:00]} Kh6 {[%emt 0:00:22]} (43... Kf8 $14) 44. c4 {[%emt 0:00:00]} (44. h4 $16) 44... Qf4+ $1 {[%emt 0:02:05]} 45. Kg1 {[%emt 0:00:00]} Qc1+ {[%emt 0:00:53]} 46. Kf2 {[%emt 0:00:00] White threatens Qe3+ and mate.} (46. Qf1 $5 {[%cal Rf1c1]} Qe3+ 47. Qf2 Qc1+ 48. Kh2 $16) 46... Qf4+ {[%emt 0:01:55][%mdl 8192]} (46... Kg6 $11) 47. Ke2 $18 {[%emt 0:00:00]} Qh2 $2 {[%emt 0:04:12]} (47... Kg7 48. Qe3 Qh4) 48. Qf3 $2 {[%emt 0:00:00]} (48. Qe3+ Kg7 49. Kf2) 48... Kg6 {[%emt 0:00:59]} 49. c5 {[%emt 0:00:00]} Qg1 {[%emt 0:00:56]} 50. c6 {[%emt 0:00:00] Threatening mate with c7.} Qc5 {[%emt 0:02:04]} 51. Qf5+ {[%emt 0:00:00]} Kg7 {[%emt 0:00:15]} 52. Qd7+ {[%emt 0:00:00]} Kg6 {[%emt 0:01:07] [#]} 53. c7 $2 {[%emt 0:00:00]} ({Better is} 53. Kd1 $1 $18 {Intending c7 and mate.} Qb5 54. h4) 53... Qc2+ $11 {[%emt 0:03:29] The position is equal.} 54. Ke3 {[%emt 0:02:56]} Qc3+ {[%emt 0:03:46]} 55. Kf2 {[%emt 0:00:31]} Qc5+ {[%emt 0:00:35]} 56. Ke2 {[%emt 0:03:30]} Qc2+ {[%emt 0:00:29]} 57. Kf3 {[%emt 0:00:25]} Qc3+ {[%emt 0:00:48]} 58. Ke2 {[%emt 0:01:19] White really could win this.  Weighted Error Value: White=0.32/Black=0.41} 1/2-1/2

[Event "FRA-ch Teams Top 16-B 2022"]
[Site "Chartres"]
[Date "2022.06.10"]
[Round "2.17"]
[White "Duboue, Peio"]
[Black "Erigaisi Arjun"]
[Result "1/2-1/2"]
[ECO "C01"]
[WhiteElo "2426"]
[BlackElo "2675"]
[Annotator "TA"]
[PlyCount "70"]
[EventDate "2022.06.09"]
[EventType "team-tourn"]
[EventCountry "FRA"]
[SourceTitle "playchess.com"]
[Source "ChessBase"]
[SourceQuality "1"]
[TimeControl "40/5400+30:1800+30"]

{[%evp 15,70,24,21,13,55,31,33,29,7,37,72,45,49,37,37,52,47,-126,-108,-126,-91,-106,-53,-82,-58,-43,-24,-59,0,-66,0,0,10,-57,-37,-55,-86,-67,-70,-83,-40,-39,-14,-27,0,0,20,-15,31,17,79,52,58,0,75,0,72]} 1. e4 {[%emt 0:00:03]} e6 {[%emt 0:00:06]} 2. d4 {[%emt 0:00:06]} d5 {[%emt 0:00:06]} 3. exd5 {[%emt 0:00:03]} exd5 {[%emt 0:00:05]} 4. Nf3 {[%emt 0:00:04]} Bd6 {[%emt 0:00:19]} 5. Bd3 {[%emt 0:00:08]} Bg4 {[%emt 0:00:22]} 6. O-O {[%emt 0:05:15]} Ne7 {[%emt 0:00:06]} 7. Re1 {[%emt 0:04:26]} Nbc6 {[%emt 0:00:20]} 8. c3 {[%emt 0:05:39]} Qd7 {[%emt 0:00:33]} 9. a4 {[%emt 0:03:23][%cal Ba2a4,Ba4a5,Ba5a6][%mdl 32] C01: French: Exchange Variation.} O-O-O {[%emt 0:04:42]} 10. b4 {[%emt 0:02:01]} Rde8 {[%emt 0:01:02]} 11. a5 {[%emt 0:12:08] White is slightly better.} Ng6 {[%emt 0:03:14] [#] Hoping for ...Bxf3.} 12. Be3 {[%emt 0:01:39] [#]} Nd8 $146 {[%emt 0:04:49]} ({Predecessor:} 12... Nf4 13. b5 Nxd3 14. bxc6 Qf5 15. cxb7+ Kb8 16. Nbd2 Nxe1 17. Qxe1 Qd3 18. Qc1 Rxe3 19. fxe3 Qxe3+ {0-1 (46) Lopez Reboso,H (2029)-Fernandez Manrique,A (2156) Tenerife 2006}) 13. h3 {[%emt 0:22:24]} Bh5 {[%emt 0:02:21]} 14. Na3 {[%emt 0:09:18]} f5 {[%emt 0:06:31][%cal Bf7f5,Bf5f4][%mdl 32]} 15. a6 {[%emt 0:04:27]} b6 {[%emt 0:00:17]} 16. Bb5 $2 {[%emt 0:01:05]} (16. Nb5 $14 {keeps the upper hand.}) 16... c6 $36 {[%emt 0:00:27][%mdl 2048] Black is really pushing.} 17. Be2 {[%emt 0:00:06] [#]} f4 $1 {[%emt 0:03:39]} 18. Bd2 {[%emt 0:00:04]} Re4 {[%emt 0:08:41]} 19. Nh2 $1 {[%emt 0:09:10]} Bxe2 {[%emt 0:02:35]} 20. Rxe2 {[%emt 0:00:02]} Rhe8 {[%emt 0:00:50]} 21. Re1 {[%emt 0:01:09]} Nf7 {[%emt 0:04:27]} (21... Qf5 $15) 22. Qh5 {[%emt 0:02:08]} (22. c4 $1 $11) 22... Nf8 {[%emt 0:03:41]} (22... Rxe1+ $6 23. Rxe1 Rxe1+ 24. Bxe1 $11) (22... Nh6 $15) 23. Rxe4 {[%emt 0:07:29]} dxe4 {[%emt 0:01:58]} 24. c4 {[%emt 0:02:25]} ({Better is} 24. d5 $11 Re5 25. dxc6 Rxh5 26. cxd7+ Nxd7 27. c4) 24... g6 {[%emt 0:05:20]} (24... e3 {with more complications.} 25. Be1 exf2+ 26. Bxf2 Bxb4 27. Nc2 Bd6) 25. Qg4 {[%emt 0:00:03]} Qxg4 {[%emt 0:02:18]} 26. Nxg4 {[%emt 0:01:58]} h5 $1 {[%emt 0:00:07]} 27. Nh2 {[%emt 0:00:03]} g5 {[%emt 0:02:36]} 28. c5 {[%emt 0:00:28]} bxc5 {[%emt 0:01:19]} 29. dxc5 {[%emt 0:00:16]} Bb8 {[%emt 0:00:05]} 30. Re1 $1 {[%emt 0:00:55]} Ng6 {[%emt 0:11:20]} 31. Bc3 {[%emt 0:03:01]} Re6 {[%emt 0:06:59]} (31... e3 $11 {should be considered.}) 32. Nf3 {[%emt 0:01:15] Nd4 is the strong threat.} Re7 {[%emt 0:03:58]} (32... e3 $1 $11 {keeps the balance.}) 33. Bf6 {[%emt 0:01:41] White is more active.} (33. Nd4 $5 {[%cal Rd4c6]} Nfe5 34. b5 $16 (34. Rxe4 Nd3 $14)) 33... Re6 {[%emt 0:00:25]} 34. Bc3 {[%emt 0:00:45]} ({Inferior is} 34. Nxg5 Rxf6 35. Nxe4 Re6 $17) 34... Re7 {[%emt 0:00:50]} 35. Bf6 {[%emt 0:00:03]} (35. Nd4 $5 {[%cal Rd4c6]} Nfe5 36. b5 $16 (36. Rxe4 Nd3 $14)) 35... Re6 {[%emt 0:00:52] Weighted Error Value: White=0.27 (precise) /Black=0.17 (very precise)} 1/2-1/2

[Event "FRA-ch Teams Top 16-B 2022"]
[Site "Chartres"]
[Date "2022.06.10"]
[Round "2.18"]
[White "Nihal Sarin"]
[Black "Di Nicolantonio, Lucas"]
[Result "1-0"]
[ECO "B12"]
[WhiteElo "2646"]
[BlackElo "2399"]
[Annotator "TA"]
[PlyCount "101"]
[EventDate "2022.06.09"]
[EventType "team-tourn"]
[EventCountry "FRA"]
[SourceTitle "playchess.com"]
[Source "ChessBase"]
[SourceQuality "1"]
[TimeControl "40/5400+30:1800+30"]

{[%evp 9,101,6,12,12,15,8,0,11,12,8,13,23,37,0,31,0,11,0,8,0,31,37,99,92,91,89,105,115,156,150,152,62,58,62,91,80,129,125,193,206,212,227,284,277,248,257,293,287,424,456,447,427,449,439,447,435,500,488,480,476,447,427,672,659,670,565,671,647,627,624,721,714,702,682,678,614,856,873,929,902,979,965,1092,1085,1177,1049,1511,1577,1481,1355,1157,1172,1104,968]} 1. e4 {[%emt 0:01:26]} c6 {[%emt 0:00:43]} 2. d4 {[%emt 0:02:06]} d5 {[%emt 0:00:08]} 3. e5 {[%emt 0:00:04]} c5 {[%emt 0:00:18]} 4. Nf3 {[%emt 0:02:23]} cxd4 {[%emt 0:00:50]} 5. Nxd4 {[%emt 0:00:21]} Nc6 {[%emt 0:01:26]} 6. Nxc6 $1 {[%emt 0:00:09] B12: Caro-Kann: Advance Variation.} bxc6 {[%emt 0:00:05]} 7. Bd3 {[%emt 0:00:04]} e6 {[%emt 0:05:27]} 8. O-O {[%emt 0:10:08] The position is equal.} Ne7 {[%emt 0:04:14]} 9. Re1 {[%emt 0:00:25]} Ng6 {[%emt 0:07:38]} 10. Nd2 {[%emt 0:01:03]} Be7 {[%emt 0:03:48] [#]} 11. g3 $146 {[%emt 0:07:33]} ({Predecessor:} 11. Qg4 a5 12. Nf3 Ba6 13. Bxg6 hxg6 14. Bg5 Rb8 15. b3 Rb4 16. Qg3 c5 17. c3 {½-½ (57) Karthikeyan,M (2630)-Harsha,B (2489) Castelldefels 2021}) 11... a5 {[%emt 0:15:44]} 12. c3 {[%emt 0:05:41]} Ba6 {[%emt 0:06:38]} 13. Bc2 {[%emt 0:16:09]} O-O {[%emt 0:10:37]} 14. Nf3 {[%emt 0:14:21]} c5 {[%emt 0:03:39]} 15. h4 {[%emt 0:00:22][%cal Bh2h4,Bh4h5][%mdl 32]} d4 {[%emt 0:21:00] [#]} (15... Re8 $1 $14) 16. Be4 $1 $16 {[%emt 0:07:24]} dxc3 {[%emt 0:02:22][%cal Of7f5] [#]} 17. h5 $1 {[%emt 0:06:13]} (17. bxc3 Qxd1 18. Rxd1 Rad8 $14) (17. Bxa8 $6 Qxa8 18. Re3 (18. bxc3 Rd8 $11) 18... Rd8 $11) 17... Qxd1 {[%emt 0:07:50]} 18. Rxd1 {[%emt 0:00:44][%cal Be1d1,Bd1d7,Bd7a7][%mdl 32]} cxb2 {[%emt 0:05:36]} 19. Bxb2 {[%emt 0:00:10]} Rab8 {[%emt 0:00:06]} 20. Bc3 {[%emt 0:08:19]} (20. hxg6 $16 Rxb2 21. Rd7) 20... Nh8 $1 $14 {[%emt 0:00:05]} 21. Rd7 $36 {[%emt 0:01:14][%mdl 2048] Prevents Bb7. White has the initiative.} Rfe8 {[%emt 0:01:10] Black is now going downhill.} 22. a4 {[%emt 0:08:46] 0x0.001e62def0badp-1022s more active pieces.} f5 {[%emt 0:00:13]} (22... Bd8 $142) 23. exf6 $1 $16 {[%emt 0:00:48]} gxf6 {[%emt 0:00:26]} (23... Bxf6 $16 {is a better defense.} 24. Bxf6 gxf6) 24. Ra7 $18 {[%emt 0:00:27]} (24. Bxa5 $6 f5 $16) 24... Bc4 {[%emt 0:01:01]} 25. Bc6 {[%emt 0:03:06]} (25. Bxa5 $6 Bd5 26. Bxd5 exd5 $16) 25... Rec8 {[%emt 0:00:13]} 26. Nd2 {[%emt 0:00:42]} (26. Rxe7 Rxc6 27. Bxf6 Nf7 $18) 26... Rxc6 {[%emt 0:00:38]} 27. Nxc4 {[%emt 0:00:02]} (27. Rxe7 $6 Bd5 $16) 27... Kf8 {[%emt 0:00:45]} 28. Rd1 {[%emt 0:00:31]} ({Don't take} 28. Nxa5 $6 Rcc8 29. Nc4 Nf7 $16) (28. Bxa5 $6 Nf7 29. Re1 Rbc8 $16) 28... Rd8 {[%emt 0:01:12]} (28... e5 $142 29. Rdd7 (29. Nxa5 Re6 $18) 29... Re6) 29. Rxd8+ {[%emt 0:02:01] White is clearly winning.} Bxd8 {[%emt 0:00:03]} 30. Ra8 {[%emt 0:00:08]} Ke7 {[%emt 0:00:58] [#]} 31. Rxd8 $1 {[%emt 0:01:35][%mdl 576] Deflection, Decoy} Kxd8 {[%emt 0:00:03]} 32. Bxf6+ {[%emt 0:00:06]} Kc7 {[%emt 0:00:06]} 33. Bxh8 {[%emt 0:00:05][%mdl 4096] Endgame} Ra6 {[%emt 0:00:04]} 34. Kf1 {[%emt 0:01:12]} Kc6 {[%emt 0:01:09]} 35. Ke2 {[%emt 0:00:09]} Kd5 {[%emt 0:00:32]} (35... Ra8 $142) 36. Kd3 {[%emt 0:00:34]} Ra7 {[%emt 0:00:05]} 37. Bc3 {[%emt 0:00:25]} Rf7 {[%emt 0:00:06]} 38. f4 {[%emt 0:00:45]} Rb7 {[%emt 0:00:35]} 39. Nxa5 {[%emt 0:01:14]} Rb1 {[%emt 0:00:12]} 40. Nc4 {[%emt 0:00:10]} Rd1+ {[%emt 0:01:10]} 41. Bd2 {[%emt 0:30:16] White threatens Ne3+ and mate.} Rh1 {[%emt 0:03:18]} 42. g4 {[%emt 0:00:00][%cal Bg3g4,Bg4g5][%mdl 32]} Rh4 {[%emt 0:01:05]} 43. Bc3 {[%emt 0:00:00]} Rh1 {[%emt 0:00:31]} 44. Ne3+ {[%emt 0:00:00]} Kd6 {[%emt 0:00:24]} 45. Bg7 {[%emt 0:00:00]} Kc6 {[%emt 0:02:26]} 46. h6 {[%emt 0:00:00]} Rg1 {[%emt 0:02:42]} 47. g5 {[%emt 0:00:00]} Rg3 {[%emt 0:00:41]} 48. Ke4 {[%emt 0:00:00]} Rg1 {[%emt 0:00:09]} 49. Nc4 {[%emt 0:00:00][%cal Og5g6] aiming for g6!} Re1+ {[%emt 0:00:26]} 50. Kf3 {[%emt 0:00:00]} Rh1 {[%emt 0:00:09]} 51. Ne5+ {[%emt 0:00:00] Weighted Error Value: White=0.07 (flawless) /Black=0.33} 1-0